bitfinex/quotes_SOLUSD_20250718
["timestamp","ask_amount","ask_price","bid_price","bid_amount"]
[1752799145683,9.82989536,178.83,178.8,29.88]
[1752799145880,9.82989536,178.82,178.8,29.88]
[1752799146189,10.51989536,178.81,178.8,29.88]
[1752799147387,10.51989536,178.81,178.72,16.12518729]
[1752799147576,9.82989536,178.77,178.73,29.82]
[1752799148087,9.82989536,178.78,178.73,29.82]
[1752799148279,9.82989536,178.78,178.73,35.41491858]
[1752799148670,0.69,178.82,178.77,9.82989536]
[1752799148871,9.82989536,178.82,178.78,29.82]
[1752799149071,0.69,178.84,178.78,29.82]
[1752799149283,9.82989536,178.82,178.78,29.82]
[1752799149474,9.82989536,178.8,178.78,29.82]
[1752799149675,10.51989536,178.79,178.78,29.82]
[1752799150086,16.11304933,178.79,178.78,29.82]
[1752799150402,10.51989536,178.79,178.78,29.82]
[1752799150588,9.82989536,178.79,178.78,29.82]
[1752799150782,10.51989536,178.79,178.78,29.82]
[1752799151579,27.95326214,178.87,178.78,29.82]
[1752799151580,9.82989536,178.81,178.78,29.82]
[1752799153386,0.69,178.82,178.78,29.82]
[1752799153608,10.51989536,178.82,178.78,29.82]
[1752799154503,5.5916633,178.84,178.78,36.11343454]
[1752799154802,9.82989536,178.83,178.78,36.11343454]
[1752799154981,10.51989536,178.83,178.78,35.41343454]
[1752799155384,0.69,178.86,178.79,10.52989536]
[1752799155707,9.82989536,178.86,178.8,9.82989536]
[1752799155884,9.82989536,178.86,178.81,29.76]
[1752799156085,10.51989536,178.88,178.82,10.52989536]
[1752799156402,9.82989536,178.89,178.82,0.7]
[1752799156707,8.9055,178.91,178.84,9.82989536]
[1752799156708,0.75,178.91,178.84,9.82989536]
[1752799156914,9.82989536,178.9,178.85,30.48]
[1752799157516,10.57989536,178.91,178.85,40.30989536]
[1752799157884,9.88989536,178.91,178.85,39.60989536]
[1752799158106,0.06,178.91,178.86,10.52989536]
[1752799158512,0.06,178.91,178.86,0.7]
[1752799158817,0.06,178.91,178.86,16.12079415]
[1752799159404,9.88989536,178.91,178.86,16.12079415]
[1752799159599,9.88989536,178.91,178.85,35.37120802]
[1752799159842,10.51989536,178.9,178.85,29.78]
[1752799160029,10.51989536,178.89,178.85,29.78]
[1752799160346,9.82989536,178.9,178.85,39.60989536]
[1752799160720,10.51989536,178.9,178.85,29.78]
[1752799160932,9.82989536,178.89,178.85,29.78]
[1752799161737,10.51989536,178.89,178.85,35.37125019]
[1752799162249,10.51989536,178.89,178.85,29.78]
[1752799162943,9.82989536,178.9,178.85,35.37122977]
[1752799163353,10.51989536,178.9,178.85,35.37122977]
[1752799164164,16.1096389,178.9,178.85,29.78]
[1752799165159,10.51989536,178.89,178.85,29.78]
[1752799165536,0.69,178.88,178.85,29.78]
[1752799165951,10.51989536,178.88,178.85,29.78]
[1752799166262,9.82989536,178.89,178.85,29.78]
[1752799166443,9.82989536,178.87,178.85,29.78]
[1752799166647,0.75,178.91,178.85,29.78]
[1752799166956,9.82989536,178.9,178.85,29.78]
[1752799167256,0.69,178.89,178.85,29.78]
[1752799167832,0.69,178.88,178.85,29.78]
[1752799168060,0.69,178.87,178.85,29.78]
[1752799168358,5.58980627,178.9,178.85,29.78]
[1752799168359,10.51989536,178.86,178.85,29.78]
[1752799168743,12.05999536,178.86,178.82,11.40418703]
[1752799168938,15.42179828,178.83,178.82,11.40418703]
[1752799169137,16.12179828,178.83,178.82,11.40418703]
[1752799171344,5.5912776,178.85,178.82,11.40418703]
[1752799171539,9.82989536,178.83,178.82,11.40418703]
[1752799172953,5.5912776,178.85,178.82,11.40418703]
[1752799172954,9.82989536,178.85,178.82,11.40418703]
[1752799173163,9.82989536,178.85,178.83,29.64]
[1752799173362,8.4864,178.9,178.83,29.64]
[1752799173666,8.4864,178.9,178.83,45.78167113]
[1752799173667,9.82989536,178.89,178.83,45.78167113]
[1752799174339,9.82989536,178.89,178.84,9.82989536]
[1752799174544,0.06,178.88,178.84,16.14139755]
[1752799176242,0.06,178.88,178.84,6.31150219]
[1752799177456,0.06,178.88,178.85,10.54989536]
[1752799177649,9.88989536,178.88,178.86,29.6]
[1752799177840,10.52989536,178.87,178.86,29.6]
[1752799178168,9.88989536,178.88,178.86,29.6]
[1752799178342,10.58989536,178.88,178.86,29.6]
[1752799179970,0.06,178.88,178.86,29.6]
[1752799180268,0.06,178.88,178.86,35.91090509]
[1752799180644,0.06,178.88,178.86,35.19090509]
[1752799180844,0.06,178.88,178.86,29.6]
[1752799181572,9.88989536,178.88,178.86,29.6]
[1752799181746,10.58989536,178.88,178.86,29.6]
[1752799181952,10.52989536,178.87,178.86,29.6]
[1752799182771,9.82989536,178.87,178.86,29.6]
[1752799182966,10.52989536,178.87,178.86,29.6]
[1752799183145,16.12054778,178.87,178.86,29.6]
[1752799183565,10.52989536,178.87,178.86,29.6]
[1752799184784,0.06,178.88,178.86,29.6]
[1752799185151,10.58989536,178.88,178.86,29.6]
[1752799185680,0.76,178.88,178.86,29.6]
[1752799185875,10.58989536,178.88,178.86,29.6]
[1752799186762,9.88989536,178.88,178.86,29.6]
[1752799187254,16.18033588,178.88,178.86,29.6]
[1752799187460,6.35044052,178.88,178.86,29.6]
[1752799187673,16.18033588,178.88,178.86,29.6]
[1752799187882,0.06,178.88,178.86,29.6]
[1752799188083,16.18027538,178.88,178.82,11.40418703]
[1752799188258,9.82989536,178.87,178.83,29.56]
[1752799188659,10.52989536,178.87,178.83,29.56]
[1752799189067,9.88989536,178.88,178.83,29.56]
[1752799189263,9.82989536,178.86,178.83,29.56]
[1752799189481,10.52989536,178.86,178.83,29.56]
[1752799189670,9.82989536,178.84,178.83,29.56]
[1752799190071,5.65034123,178.88,178.83,29.56]
[1752799190072,0.06,178.88,178.83,45.70179828]
[1752799190262,9.82989536,178.87,178.83,29.56]
[1752799190459,0.7,178.87,178.83,29.56]
[1752799190661,10.52989536,178.87,178.83,29.56]
[1752799190967,9.82989536,178.86,178.84,29.6]
[1752799191566,9.82989536,178.85,178.84,29.6]
[1752799191884,10.52989536,178.85,178.84,29.6]
[1752799192378,10.52989536,178.85,178.82,40.98418703]
[1752799192569,0.7,178.84,178.82,40.98418703]
[1752799192766,9.82989536,178.83,178.82,40.98418703]
[1752799192963,10.52989536,178.83,178.82,40.98418703]
[1752799193297,16.12179828,178.83,178.82,11.40418703]
[1752799197064,6.29190292,178.83,178.82,11.40418703]
[1752799197310,16.12179828,178.83,178.82,11.40418703]
[1752799198586,30.10155559,178.83,178.74,0.03]
[1752799198770,9.82989536,178.77,178.75,29.58]
[1752799198984,19.57166023,178.83,178.75,29.58]
[1752799198985,0.7,178.79,178.75,29.58]
[1752799199185,9.82989536,178.78,178.75,29.58]
[1752799199487,19.57166023,178.83,178.74,0.03]
[1752799199488,9.82989536,178.76,178.74,0.03]
[1752799200169,9.82989536,178.75,178.74,0.03]
[1752799200582,10.52989536,178.75,178.74,0.03]
[1752799201066,13.97975731,178.83,178.74,16.17447]
[1752799201271,9.82989536,178.8,178.75,0.72]
[1752799201471,9.82989536,178.81,178.76,29.58]
[1752799201669,10.52989536,178.81,178.76,30.3]
[1752799201892,9.82989536,178.81,178.77,0.72]
[1752799202386,10.52989536,178.81,178.76,29.58]
[1752799202684,0.7,178.81,178.76,30.3]
[1752799202986,5.59065242,178.87,178.79,9.82989536]
[1752799203185,5.59065242,178.87,178.8,29.58]
[1752799203186,9.82989536,178.86,178.8,29.58]
[1752799203394,9.82989536,178.85,178.81,29.58]
[1752799203690,0.76,178.88,178.81,29.58]
[1752799203691,10.58989536,178.88,178.82,10.54989536]
[1752799203992,0.06,178.88,178.83,9.82989536]
[1752799204188,0.06,178.88,178.84,0.72]
[1752799204491,0.06,178.88,178.85,29.58]
[1752799204994,0.06,178.88,178.86,0.72]
[1752799205778,0.06,178.88,178.85,29.58]
[1752799205980,0.06,178.88,178.85,30.3]
[1752799206285,0.06,178.88,178.86,0.72]
[1752799206600,0.06,178.88,178.86,7.1675]
[1752799206975,0.1,178.92,178.86,7.1675]
[1752799206976,0.1,178.92,178.87,27.33457933]
[1752799207184,17.64051782,179.0,178.91,26.61457933]
[1752799207396,12.05389536,179.0,178.95,9.82989536]
[1752799207672,9.82989536,178.98,178.93,5.58877773]
[1752799207891,9.82989536,178.98,178.93,6.14877773]
[1752799208409,9.88989536,178.96,178.93,6.14877773]
[1752799208771,9.88989536,178.96,178.93,5.58877773]
[1752799208993,9.88989536,178.96,178.93,6.14877773]
[1752799209414,0.06,178.96,178.94,0.56]
[1752799209708,9.88989536,178.96,178.94,6.14841386]
[1752799209991,9.88989536,178.96,178.94,5.58841386]
[1752799210195,9.82989536,178.95,178.92,29.6]
[1752799210412,9.82989536,178.94,178.92,29.6]
[1752799210777,9.82989536,178.93,178.92,29.6]
[1752799211376,5.64801104,178.96,178.92,29.6]
[1752799211582,9.82989536,178.93,178.92,29.6]
[1752799211997,5.64801104,178.96,178.92,29.6]
[1752799212178,9.82989536,178.93,178.92,29.6]
[1752799212880,10.52989536,178.93,178.92,29.6]
[1752799213495,9.82989536,178.93,178.92,29.6]
[1752799213691,15.41867309,178.93,178.92,29.6]
[1752799213900,16.11867309,178.93,178.92,29.6]
[1752799214778,16.11867309,178.93,178.89,29.6]
[1752799214994,9.82989536,178.9,178.89,29.6]
[1752799215297,14.02960214,178.96,178.89,29.6]
[1752799215298,0.06,178.96,178.89,29.6]
[1752799215506,0.7,178.95,178.89,29.6]
[1752799215706,9.82989536,178.91,178.89,29.6]
[1752799216105,9.82989536,178.9,178.89,29.6]
[1752799218401,10.52989536,178.9,178.89,29.6]
[1752799218614,16.11961028,178.9,178.89,29.6]
[1752799218787,10.52989536,178.9,178.89,29.6]
[1752799219121,6.28937363,178.92,178.89,29.6]
[1752799219290,9.82989536,178.9,178.89,29.6]
[1752799219499,5.58937363,178.92,178.89,29.6]
[1752799219713,9.82989536,178.9,178.89,29.6]
[1752799220012,5.58948022,178.91,178.89,29.6]
[1752799220308,5.64811439,178.96,178.89,29.6]
[1752799220540,9.82989536,178.9,178.89,29.6]
[1752799220686,10.52989536,178.9,178.89,29.6]
[1752799221703,9.82989536,178.9,178.89,29.6]
[1752799224989,16.11961028,178.9,178.89,29.6]
[1752799225503,9.82989536,178.9,178.89,29.6]
[1752799226395,0.7,178.94,178.89,29.6]
[1752799226713,5.58815311,178.95,178.89,29.6]
[1752799226714,9.82989536,178.9,178.89,29.6]
[1752799226918,0.7,178.93,178.89,29.6]
[1752799227134,6.13610181,178.9,178.89,29.6]
[1752799227498,26.06,178.96,178.89,35.75000265]
[1752799227499,6.13610181,178.92,178.89,35.75000265]
[1752799227812,6.13610181,178.92,178.9,0.56]
[1752799228024,6.13610181,178.91,178.85,0.56]
[1752799228222,6.13610181,178.89,178.86,29.56]
[1752799228519,6.13610181,178.89,178.85,29.56]
[1752799228520,0.7,178.89,178.85,29.56]
[1752799228694,0.7,178.92,178.85,30.12]
[1752799228896,6.13610181,178.88,178.85,30.12]
[1752799229308,6.13610181,178.87,178.85,30.12]
[1752799229694,6.13610181,178.88,178.85,30.12]
[1752799230010,6.13610181,178.87,178.85,29.56]
[1752799230388,6.13610181,178.86,178.85,29.56]
[1752799230718,0.68,178.9,178.85,29.56]
[1752799230913,6.13610181,178.88,178.85,29.56]
[1752799231422,6.13610181,178.87,178.85,29.56]
[1752799231801,6.13610181,178.88,178.85,30.12]
[1752799232002,6.13610181,178.88,178.85,35.15122147]
[1752799232207,6.13610181,178.88,178.85,29.56]
[1752799232406,6.13610181,178.88,178.85,30.12]
[1752799232608,6.13610181,178.89,178.86,0.56]
[1752799232928,1.5009,178.94,178.78,0.56]
[1752799232929,6.13610181,178.87,178.78,0.56]
[1752799233113,6.13610181,178.84,178.79,29.56]
[1752799233417,6.13610181,178.84,178.79,30.12]
[1752799233823,6.13610181,178.84,178.79,35.15315397]
[1752799234024,6.13610181,178.84,178.8,0.56]
[1752799234401,6.13610181,178.82,178.79,29.56]
[1752799234608,6.13610181,178.8,178.79,29.56]
[1752799234807,6.81610181,178.8,178.79,29.56]
[1752799235346,12.95220362,178.8,178.74,0.03]
[1752799235634,6.13610181,178.75,178.74,29.59]
[1752799236023,11.7305074,178.75,178.74,29.59]
[1752799236209,6.27409065,178.77,178.74,29.59]
[1752799236406,6.13610181,178.75,178.74,29.59]
[1752799236927,9.83451351,178.75,178.74,29.59]
[1752799239609,10.51451351,178.75,178.74,29.59]
[1752799240023,10.51451351,178.75,178.74,29.09]
[1752799240928,9.83451351,178.75,178.74,29.09]
[1752799241535,5.59409277,178.76,178.74,29.12]
[1752799241723,6.27409277,178.76,178.74,29.12]
[1752799242344,9.83451351,178.75,178.74,29.12]
[1752799242509,6.27410065,178.76,178.74,29.12]
[1752799242812,9.83451351,178.75,178.74,29.12]
[1752799243012,0.68,178.76,178.74,29.12]
[1752799243324,9.83451351,178.75,178.74,29.12]
[1752799243523,0.68,178.76,178.74,29.12]
[1752799243829,9.83451351,178.79,178.75,0.56]
[1752799244004,10.51451351,178.8,178.75,0.56]
[1752799244205,9.83451351,178.79,178.75,0.56]
[1752799244607,10.51451351,178.78,178.74,29.12]
[1752799245224,10.51451351,178.78,178.74,34.71471335]
[1752799245609,9.83451351,178.77,178.74,29.12]
[1752799245809,0.68,178.78,178.74,29.12]
[1752799246038,9.83451351,178.78,178.74,35.27464134]
[1752799246740,9.83451351,178.79,178.74,35.27464134]
[1752799246923,9.83451351,178.79,178.74,34.71464134]
[1752799247106,9.83451351,178.78,178.74,29.12]
[1752799247326,9.83451351,178.79,178.74,35.27463653]
[1752799247631,9.83451351,178.8,178.75,0.56]
[1752799247812,9.83451351,178.82,178.76,9.83451351]
[1752799248015,9.83451351,178.81,178.77,29.58]
[1752799248324,9.83451351,178.84,178.78,10.39451351]
[1752799248513,0.68,178.85,178.77,29.58]
[1752799248514,9.83451351,178.86,178.8,9.83451351]
[1752799248714,9.83451351,178.86,178.81,29.58]
[1752799248918,10.51451351,178.86,178.81,29.58]
[1752799249544,9.83451351,178.86,178.81,35.73239823]
[1752799249735,9.83451351,178.87,178.81,45.00691174]
[1752799249914,9.83451351,178.87,178.82,0.56]
[1752799250515,10.51451351,178.87,178.82,0.56]
[1752799250710,10.51451351,178.87,178.81,45.00691174]
[1752799251132,9.83451351,178.86,178.81,35.17239823]
[1752799251322,10.51451351,178.86,178.81,35.17239823]
[1752799251520,9.83451351,178.87,178.81,45.00691174]
[1752799251723,9.83451351,178.87,178.82,0.56]
[1752799251924,9.83451351,178.87,178.83,0.56]
[1752799252114,9.83451351,178.87,178.84,29.58]
[1752799252324,9.83451351,178.88,178.84,29.58]
[1752799252921,9.83451351,178.88,178.84,35.1714521]
[1752799253123,9.83451351,178.89,178.84,35.7314521]
[1752799253337,9.83451351,178.89,178.85,0.56]
[1752799253540,0.68,178.9,178.85,0.56]
[1752799253541,10.51451351,178.9,178.85,0.56]
[1752799253838,9.83451351,178.91,178.86,0.56]
[1752799254138,9.83451351,178.9,178.87,29.58]
[1752799254325,10.51451351,178.9,178.87,29.58]
[1752799254521,0.68,178.89,178.87,29.58]
[1752799254723,0.68,178.88,178.87,29.58]
[1752799255928,5.64928426,178.92,178.87,29.58]
[1752799256133,9.83451351,178.9,178.87,29.58]
[1752799256335,0.68,178.89,178.87,29.58]
[1752799256533,10.51451351,178.89,178.87,29.58]
[1752799256925,6.81659261,178.89,178.87,29.58]
[1752799258842,6.13659261,178.89,178.87,29.58]
[1752799259645,6.80659261,178.89,178.87,29.58]
[1752799260221,0.67,178.88,178.87,29.58]
[1752799260523,6.13659261,178.9,178.87,29.58]
[1752799260939,0.06,178.92,178.88,6.15011909]
[1752799261122,6.19659261,178.92,178.87,41.30716176]
[1752799261316,6.13659261,178.91,178.87,29.58]
[1752799261518,6.80659261,178.9,178.87,29.58]
[1752799262524,6.13659261,178.9,178.87,29.58]
[1752799263025,6.80659261,178.9,178.87,29.58]
[1752799264945,5.64918106,178.92,178.87,29.58]
[1752799265142,6.13659261,178.91,178.87,29.58]
[1752799265723,6.13659261,178.91,178.87,30.14]
[1752799266027,6.19659261,178.92,178.88,0.56]
[1752799266630,6.13659261,178.91,178.87,29.58]
[1752799266830,6.13659261,178.91,178.87,35.73058424]
[1752799267044,6.13659261,178.91,178.87,30.14]
[1752799267245,6.13659261,178.91,178.87,29.58]
[1752799267246,11.7260735,178.91,178.87,29.58]
[1752799267829,6.13659261,178.91,178.87,30.14]
[1752799268231,6.13659261,178.91,178.87,29.58]
[1752799268744,6.80659261,178.91,178.87,29.58]
[1752799270234,12.39602605,178.91,178.87,29.58]
[1752799271853,6.80659261,178.91,178.87,29.58]
[1752799272239,6.80659261,178.91,178.87,35.17062723]
[1752799272846,6.19659261,178.92,178.88,0.56]
[1752799273170,0.06,178.92,178.89,0.56]
[1752799273346,0.06,178.92,178.9,29.54]
[1752799276437,6.19659261,178.92,178.9,29.54]
[1752799277262,6.80659261,178.91,178.9,29.54]
[1752799277637,0.67,178.91,178.9,29.54]
[1752799277853,6.80659261,178.91,178.9,29.54]
[1752799278141,0.06,178.92,178.9,29.54]
[1752799279046,0.06,178.92,178.9,35.1295277]
[1752799279239,0.06,178.92,178.9,35.6895277]
[1752799279445,0.06,178.92,178.9,29.54]
[1752799279871,0.06,178.92,178.9,35.12966488]
[1752799280565,0.06,178.92,178.91,0.56]
[1752799281158,0.06,178.92,178.91,23.48127658]
[1752799281545,11.05026448,179.16,179.01,26.0]
[1752799281746,11.05026448,179.16,179.09,6.1852]
[1752799281954,6.64035761,179.17,179.11,5.58316118]
[1752799282152,0.503765,179.17,179.1,29.9]
[1752799282369,6.64035761,179.17,179.1,35.48334833]
[1752799282553,6.13659261,179.16,179.1,36.03659261]
[1752799282868,0.503765,179.17,179.1,35.48344046]
[1752799283046,6.13659261,179.16,179.1,36.03659261]
[1752799283244,0.503765,179.17,179.12,6.13659261]
[1752799283550,0.503765,179.17,179.13,29.54]
[1752799284077,6.64035761,179.17,179.13,29.54]
[1752799284274,6.13659261,179.16,179.13,29.54]
[1752799284454,6.80659261,179.16,179.13,29.54]
[1752799284771,0.67,179.16,179.13,29.54]
[1752799284989,32.13659261,179.14,179.07,2.91708289]
[1752799285154,26.67,179.14,179.1,6.13659261]
[1752799286153,32.25228703,179.14,179.09,6.13659261]
[1752799286362,0.67,179.14,179.09,6.13659261]
[1752799286561,11.7185269,179.15,179.09,6.49659261]
[1752799287050,5.58166162,179.16,179.11,6.13659261]
[1752799287253,5.58166162,179.16,179.12,29.52]
[1752799287454,0.503765,179.17,179.14,6.13659261]
[1752799287888,0.563765,179.17,179.15,35.65659261]
[1752799288069,0.563765,179.17,179.16,6.13659261]
[1752799288259,0.563765,179.17,179.16,6.49659261]
[1752799288578,0.563765,179.17,179.16,28.86287961]
[1752799289375,0.563765,179.17,179.16,23.28127658]
[1752799289559,0.563765,179.17,179.15,29.52]
[1752799289767,0.563765,179.17,179.16,6.13659261]
[1752799289990,6.14510209,179.17,179.14,6.13659261]
[1752799290192,6.80659261,179.16,179.12,29.5]
[1752799290368,0.67,179.15,179.11,29.5]
[1752799291162,9.78922961,179.16,179.11,29.5]
[1752799291367,20.09833086,179.17,179.11,29.5]
[1752799291368,20.76833086,179.17,179.11,29.5]
[1752799291584,9.78922961,179.16,179.11,29.5]
[1752799291769,10.45922961,179.15,179.11,29.5]
[1752799292086,6.14510209,179.17,179.12,9.78922961]
[1752799292295,6.14510209,179.17,179.14,9.78922961]
[1752799292485,6.14510209,179.17,179.14,29.5]
[1752799294906,0.67,179.16,179.14,29.5]
[1752799295095,10.45922961,179.15,179.08,0.36]
[1752799295277,10.45922961,179.15,179.09,39.28922961]
[1752799295473,10.45922961,179.15,179.09,29.5]
[1752799295681,10.45922961,179.15,179.09,39.28922961]
[1752799296192,10.45922961,179.15,179.03,1.6617]
[1752799296193,9.78922961,179.12,179.07,29.86]
[1752799296368,10.45922961,179.11,179.07,29.5]
[1752799296690,5.58378468,179.09,179.07,29.5]
[1752799296888,6.25378468,179.09,179.07,29.5]
[1752799297077,16.04301429,179.09,179.07,29.5]
[1752799298093,5.58378468,179.09,179.07,29.5]
[1752799298392,5.58344182,179.11,179.07,39.64922961]
[1752799298798,5.58344182,179.11,179.07,29.86]
[1752799298976,5.58253782,179.13,179.07,29.86]
[1752799299176,9.78922961,179.12,179.07,29.86]
[1752799300213,5.58316118,179.11,179.07,29.5]
[1752799300499,5.58316118,179.11,179.07,29.86]
[1752799300871,5.58316118,179.11,179.07,39.64922961]
[1752799301073,7.067765,179.17,179.07,39.64922961]
[1752799301074,9.78922961,179.16,179.08,0.36]
[1752799301278,9.78922961,179.14,179.08,10.14922961]
[1752799301595,0.67,179.15,179.08,0.36]
[1752799301772,9.78922961,179.11,179.04,0.36]
[1752799301974,9.78922961,179.1,179.05,29.48]
[1752799302196,15.37275336,179.1,179.05,29.48]
[1752799302445,15.37275336,179.1,179.05,29.84]
[1752799302896,5.58352375,179.1,179.05,39.62922961]
[1752799303199,9.78922961,179.13,179.07,9.78922961]
[1752799303492,9.78922961,179.13,179.08,29.48]
[1752799303697,10.45922961,179.12,179.08,29.48]
[1752799304301,5.58316118,179.11,179.08,29.48]
[1752799305589,5.58284948,179.12,179.08,29.48]
[1752799305788,6.25284948,179.12,179.08,29.48]
[1752799306104,5.5824833,179.14,179.08,39.62922961]
[1752799306310,16.04171291,179.14,179.08,39.26922961]
[1752799306681,6.2524833,179.14,179.08,39.26922961]
[1752799307416,6.2524833,179.14,179.08,44.85325519]
[1752799307576,9.78922961,179.16,179.1,9.78922961]
[1752799307778,0.563765,179.17,179.14,9.78922961]
[1752799308007,0.563765,179.17,179.09,5.58364129]
[1752799308008,0.563765,179.17,179.15,39.26922961]
[1752799308388,0.563765,179.17,179.15,39.62922961]
[1752799309104,0.67,179.16,179.15,29.48]
[1752799309688,6.14507542,179.17,179.15,29.48]
[1752799309896,0.67,179.16,179.15,29.48]
[1752799310498,10.45922961,179.16,179.15,29.48]
[1752799311679,16.04083264,179.16,179.15,29.48]
[1752799313614,16.04083264,179.16,179.12,29.48]
[1752799313810,9.78922961,179.14,179.12,29.48]
[1752799314012,0.67,179.13,179.12,29.48]
[1752799314592,10.45922961,179.15,179.12,29.48]
[1752799314810,0.67,179.14,179.12,29.48]
[1752799315413,5.58160303,179.16,179.12,29.48]
[1752799315901,16.60438784,179.17,179.12,29.48]
[1752799316221,16.10438784,179.17,179.12,29.48]
[1752799316391,6.31515823,179.17,179.12,29.48]
[1752799316809,16.10438784,179.17,179.12,29.48]
[1752799318804,15.43438784,179.17,179.12,29.48]
[1752799319009,9.78922961,179.16,179.12,29.84]
[1752799319214,16.10438784,179.17,179.12,29.84]
[1752799319724,16.10438784,179.17,179.12,29.48]
[1752799320230,6.31515823,179.17,179.12,29.48]
[1752799320437,16.10438784,179.17,179.12,29.48]
[1752799321219,0.67,179.16,179.12,29.48]
[1752799321435,10.45922961,179.15,179.12,29.48]
[1752799321597,9.78922961,179.14,179.12,29.48]
[1752799321800,10.45922961,179.14,179.12,29.48]
[1752799322598,9.78922961,179.15,179.12,29.48]
[1752799322808,10.45922961,179.15,179.12,29.48]
[1752799323111,6.11790275,179.16,179.12,29.48]
[1752799323308,0.063765,179.17,179.13,0.36]
[1752799323718,11.76300769,179.17,179.12,29.48]
[1752799323937,12.43300769,179.17,179.12,29.48]
[1752799324239,0.063765,179.17,179.12,35.42284747]
[1752799324531,5.64510575,179.17,179.13,0.36]
[1752799324708,0.67,179.16,179.12,29.48]
[1752799324933,6.78790275,179.16,179.12,29.48]
[1752799325432,12.36951028,179.16,179.12,29.48]
[1752799325813,0.063765,179.17,179.12,35.06282274]
[1752799326019,6.18166775,179.17,179.12,35.42282274]
[1752799326924,12.43296827,179.17,179.12,29.84]
[1752799327122,0.063765,179.17,179.13,0.36]
[1752799327437,0.063765,179.17,179.12,35.0627711]
[1752799327438,6.11790275,179.16,179.12,29.48]
[1752799328012,6.85166775,179.17,179.12,29.48]
[1752799328212,6.18166775,179.17,179.12,29.48]
[1752799328412,0.67,179.16,179.12,29.48]
[1752799328846,12.36954907,179.16,179.12,29.48]
[1752799329151,6.78790275,179.16,179.12,29.48]
[1752799329921,11.76304889,179.17,179.12,29.48]
[1752799330125,12.43304889,179.17,179.12,29.48]
[1752799330957,0.063765,179.17,179.12,41.18069123]
[1752799331132,0.063765,179.17,179.14,6.11790275]
[1752799331445,0.063765,179.17,179.15,29.46]
[1752799331647,0.063765,179.17,179.15,29.82]
[1752799332022,0.063765,179.17,179.15,29.46]
[1752799335144,0.063765,179.17,179.15,29.82]
[1752799335446,0.063765,179.17,179.15,29.46]
[1752799336161,11.62281242,179.19,179.15,29.46]
[1752799336463,12.29281242,179.19,179.15,29.46]
[1752799336656,6.11790275,179.17,179.15,29.46]
[1752799336829,6.78790275,179.18,179.15,29.46]
[1752799337359,12.36896093,179.18,179.15,29.46]
[1752799337531,0.67,179.18,179.15,29.46]
[1752799337734,6.25038098,179.2,179.15,29.46]
[1752799337968,6.11790275,179.19,179.15,29.46]
[1752799338447,6.11790275,179.18,179.15,29.46]
[1752799338828,6.11790275,179.17,179.15,29.46]
[1752799339026,0.67,179.21,179.15,29.46]
[1752799339234,6.11790275,179.2,179.15,29.46]
[1752799339457,0.67,179.2,179.15,29.46]
[1752799339661,0.67,179.19,179.15,29.46]
[1752799339865,6.78790275,179.19,179.15,29.46]
[1752799340238,6.11790275,179.19,179.15,29.82]
[1752799340446,6.11790275,179.19,179.15,29.46]
[1752799340664,6.78790275,179.19,179.15,29.46]
[1752799341159,6.11790275,179.19,179.15,29.46]
[1752799341367,11.69859437,179.19,179.15,29.46]
[1752799341869,12.36859437,179.19,179.15,29.46]
[1752799342250,6.11790275,179.18,179.15,29.46]
[1752799342563,6.78790275,179.17,179.15,29.46]
[1752799342862,6.11790275,179.18,179.13,29.44]
[1752799343033,12.36859437,179.19,179.14,35.38217437]
[1752799343361,12.36859437,179.19,179.14,29.8]
[1752799343362,11.69859437,179.19,179.14,29.8]